fUST/lending_fUST_20260625
["ID","MTS","AMOUNT","RATE_DAILY","PERIOD"]
[426375354,1782335361000,-592.48450844,0.00035664,2]
[426375352,1782335361000,-383.26858823,0.00035664,2]
[426375350,1782335361000,-353.32315856,0.00035664,2]
[426375351,1782335361000,-565.16459741,0.00035664,2]
[426375349,1782335361000,-309.22793101,0.00035664,2]
[426375360,1782335361000,-723.64054438,0.00035692,2]
[426375372,1782335362000,-203.03956634,0.00035878,2]
[426375374,1782335362000,-882.42032213,0.00036029,2]
[426375373,1782335362000,-500.0,0.00036,120]
[426375376,1782335362000,-857.00048768,0.00036125,2]
[426375377,1782335362000,-151.92036795,0.00036137,21]
[426375378,1782335362000,180.902808,0.00028767,7]
[426375375,1782335362000,-904.55068047,0.00036125,2]
[426375379,1782335363000,180.902808,0.00035633,7]
[426375381,1782335365000,180.902808,0.00035633,7]
[426375380,1782335365000,180.902808,0.00028767,7]
[426375382,1782335367000,180.902808,0.00028767,7]
[426375384,1782335368000,500.0,0.00028842,60]
[426375385,1782335368000,151.91570752,0.00030269,5]
[426375383,1782335368000,151.91570786,0.00030137,2]
[426375387,1782335368000,151.91570752,0.00030664,7]
[426375388,1782335368000,151.91570752,0.00031324,10]
[426375386,1782335368000,180.902808,0.00035633,7]
[426375391,1782335369000,151.91570752,0.00034884,18]
[426375390,1782335369000,151.91570752,0.00033434,16]
[426375389,1782335369000,151.91570752,0.00032247,13]
[426375392,1782335370000,180.902808,0.00028767,7]
[426375393,1782335371000,180.902808,0.00035633,7]
[426375394,1782335375000,151.0,0.00028767,7]
[426375395,1782335376000,151.0,0.00035633,7]
[426375396,1782335379000,200.0,0.00034643,2]
[426375397,1782335380000,200.0,0.00034068,2]
[426375399,1782335395000,854.437499,0.00028767,7]
[426375408,1782335396000,854.437499,0.00035633,7]
[426375416,1782335397000,854.437499,0.00028767,7]
[426375417,1782335398000,854.437499,0.00035633,7]
[426375418,1782335399000,854.437499,0.00028767,7]
[426375419,1782335400000,854.437499,0.00035633,7]
[426375420,1782335402000,854.437499,0.00028767,7]
[426375421,1782335403000,854.437499,0.00035633,7]
[426375422,1782335414000,197.73275326,0.000275,2]
[426375423,1782335418000,587.19921102,0.000351,30]
[426375424,1782335423000,587.19921101,0.000351,30]
[426375425,1782335428000,587.19921101,0.000351,30]
[426375457,1782335436000,151.0,0.0002875,7]
[426375521,1782335438000,-538.83736883,0.00037904,60]
[426375510,1782335438000,-1085.46081656,0.00036774,2]
[426375524,1782335438000,-203.71,0.000383,120]
[426375506,1782335438000,-151.91570752,0.00036599,21]
[426375508,1782335438000,-1058.90438656,0.00036676,2]
[426375526,1782335438000,-1584.0,0.00038356,60]
[426375512,1782335438000,-1028.40058522,0.00036774,2]
[426375528,1782335438000,-165.14123,0.00038423,2]
[426375533,1782335438000,-916.71366916,0.00038767,120]
[426375516,1782335438000,-1266.37095266,0.00037747,2]
[426375529,1782335438000,-151.91570752,0.00038577,24]
[426375531,1782335438000,-1200.0,0.00038767,120]
[426375522,1782335438000,-500.0,0.00038,120]
[426375537,1782335438000,-1584.0,0.00038904,60]
[426375535,1782335438000,-203.71,0.000388,120]
[426375539,1782335438000,-1411.87251541,0.00039102,2]
[426375541,1782335438000,-1447.28108875,0.00039207,2]
[426375551,1782335438000,-1276.330268,0.00039452,28]
[426375514,1782335438000,-1235.38845098,0.00037646,2]
[426375518,1782335438000,-500.0,0.00037904,60]
[426375497,1782335438000,-978.54185633,0.00036527,2]
[426375499,1782335438000,-223.20866974,0.00036527,2]
[426375553,1782335438000,-1276.330268,0.00039452,28]
[426375475,1782335438000,-52566.04363381,0.0002875,2]
[426375477,1782335438000,-6400.37483448,0.0002875,2]
[426375481,1782335438000,-4871.66643774,0.0002875,2]
[426375479,1782335438000,-58216.2717684,0.0002875,2]
[426375468,1782335438000,-501.4505137,0.0002875,10]
[426375470,1782335438000,-500.0,0.0002875,11]
[426375472,1782335438000,-655642.26727229,0.0002875,2]
[426375504,1782335438000,-1982.28231219,0.00036549,2]
[426375473,1782335438000,-92823.24817488,0.0002875,2]
[426375486,1782335438000,-4500.0,0.0002875,2]
[426375488,1782335438000,-3199.68923388,0.0002875,2]
[426375490,1782335438000,-148619.26282549,0.0002875,2]
[426375494,1782335438000,-305.7943301,0.00036527,2]
[426375492,1782335438000,-302.0,0.0002875,2]
[426375495,1782335438000,-550.42979418,0.00036527,2]
[426375501,1782335438000,-619.46322256,0.00036549,2]
[426375503,1782335438000,-1115.0338006,0.00036549,2]
[426375483,1782335438000,-771.71495539,0.0002875,2]
[426375543,1782335438000,-203.71,0.000393,120]
[426375484,1782335438000,-2920.0,0.0002875,2]
[426375547,1782335438000,-1276.330268,0.00039452,28]
[426375606,1782335438000,-1486.357329,0.0004041,120]
[426375592,1782335438000,-1361.00073323,0.00040278,64]
[426375588,1782335438000,-158.67,0.00040235,3]
[426375594,1782335438000,-203.71,0.000403,120]
[426375590,1782335438000,-1066.51400725,0.00040249,5]
[426375610,1782335438000,-1486.357329,0.0004041,120]
[426375612,1782335438000,-4599.562189,0.0004041,120]
[426375624,1782335438000,-4240.0,0.0004041,120]
[426375622,1782335438000,-4240.0,0.0004041,120]
[426375637,1782335438000,225.62563,0.0002875,7]
[426375626,1782335438000,-4240.0,0.0004041,120]
[426375630,1782335438000,-260.0,0.00040443,2]
[426375614,1782335438000,-4599.562189,0.0004041,120]
[426375628,1782335438000,-380.0,0.00040443,2]
[426375616,1782335438000,-4599.562189,0.0004041,120]
[426375631,1782335438000,-1076686.15670212,0.00040444,30]
[426375633,1782335438000,-91447.88462084,0.00040444,30]
[426375618,1782335438000,-4599.562189,0.0004041,120]
[426375620,1782335438000,-4240.0,0.0004041,120]
[426375604,1782335438000,-1486.357329,0.0004041,120]
[426375608,1782335438000,-1486.357329,0.0004041,120]
[426375556,1782335438000,-1584.0,0.00039452,60]
[426375600,1782335438000,-224.699908,0.0004041,120]
[426375545,1782335438000,-524.9035564,0.00039444,5]
[426375558,1782335438000,-144523.82951372,0.000396,30]
[426375549,1782335438000,-1276.330268,0.00039452,28]
[426375561,1782335438000,-4207.62229649,0.0003976,2]
[426375563,1782335438000,-203.71,0.000398,120]
[426375578,1782335438000,-500.0,0.00039961,3]
[426375580,1782335438000,-500.0,0.00039961,3]
[426375576,1782335438000,-500.0,0.00039961,3]
[426375571,1782335438000,-500.0,0.00039961,3]
[426375602,1782335438000,-224.699908,0.0004041,120]
[426375565,1782335438000,-500.0,0.00039961,3]
[426375584,1782335438000,-1584.0,0.0004,60]
[426375586,1782335438000,-500.0,0.0004,120]
[426375598,1782335438000,-224.699908,0.0004041,120]
[426375596,1782335438000,-224.699908,0.0004041,120]
[426375572,1782335438000,-500.0,0.00039961,3]
[426375569,1782335438000,-500.0,0.00039961,3]
[426375574,1782335438000,-500.0,0.00039961,3]
[426375567,1782335438000,-500.0,0.00039961,3]
[426375582,1782335438000,-521.37739847,0.00039961,3]
[426375825,1782335440000,-311.991456,0.00040444,30]
[426375827,1782335440000,-480.11205995,0.00040444,30]
[426375816,1782335440000,-624.64781687,0.00040444,30]
[426375846,1782335440000,-304.0,0.00040444,30]
[426376179,1782335443000,-1028.85686,0.00040444,30]
[426376181,1782335443000,-387.83051108,0.00040444,30]
[426376177,1782335443000,-9178.53872,0.00040444,30]
[426376175,1782335443000,-367.56,0.00039,60]
[426376173,1782335443000,-2549.81,0.00039,60]
[426376277,1782335446000,-10846.85144632,0.00040444,30]
[426376276,1782335446000,-32.55436905,0.00040444,30]
[426376278,1782335446000,-11847.57843492,0.00040444,30]
[426376279,1782335468000,151.0,0.0002875,7]
[426376280,1782335470000,151.0,0.0002875,7]
[426376281,1782335472000,151.0,0.0002875,7]
[426376282,1782335474000,151.0,0.0002875,7]
[426376283,1782335485000,203758.42581254,0.0002875,30]
[426376284,1782335488000,417.43169457,0.0002875,60]
[426376285,1782335493000,286.91569692,0.0001,2]
[426376286,1782335495000,500.0,0.0002875,60]
[426376287,1782335501000,600.0,0.00035633,2]
[426376288,1782335506000,500.0,0.0002875,60]
[426376289,1782335513000,294.3993322,0.00028748,60]
[426376290,1782335513000,500.0,0.00028748,60]
[426376291,1782335516000,500.0,0.00028748,60]
[426376292,1782335522000,500.0,0.00028748,60]
[426376293,1782335525000,543.17480715,0.00028748,60]
[426376294,1782335535000,504.33851819,0.00028748,60]
[426376295,1782335536000,500.0,0.00028749,2]
[426376297,1782335536000,500.0,0.00028749,2]
[426376296,1782335536000,500.0,0.00028749,2]
[426376298,1782335536000,500.0,0.00028749,2]
[426376299,1782335536000,500.0,0.00028749,2]
[426376300,1782335537000,500.0,0.00028749,2]
[426376302,1782335537000,500.0,0.00028749,2]
[426376301,1782335537000,500.0,0.00028749,2]
[426376303,1782335537000,500.0,0.00028749,2]
[426376305,1782335537000,500.0,0.00028749,2]
[426376304,1782335537000,500.0,0.00028749,2]
[426376306,1782335537000,500.0,0.00028749,2]
[426376309,1782335537000,500.0,0.00028749,2]
[426376307,1782335537000,500.0,0.00028749,2]
[426376308,1782335537000,500.0,0.00028749,2]
[426376317,1782335537000,500.0,0.00028749,2]
[426376311,1782335537000,500.0,0.00028749,2]
[426376312,1782335537000,500.0,0.00028749,2]
[426376313,1782335537000,500.0,0.00028749,2]
[426376314,1782335537000,500.0,0.00028749,2]
[426376315,1782335537000,500.0,0.00028749,2]
[426376316,1782335537000,500.0,0.00028749,2]
[426376318,1782335537000,500.0,0.00028749,2]
[426376319,1782335537000,500.0,0.00028749,2]
[426376320,1782335537000,500.0,0.00028749,2]
[426376310,1782335537000,241.9943637,0.00028749,2]
[426376321,1782335542000,522.05458388,0.00028748,60]
[426376322,1782335546000,514.32550054,0.00028748,60]
[426376323,1782335558000,501.47266963,0.00028748,60]
[426376324,1782335564000,526.62072261,0.00028748,60]
[426376325,1782335565000,500.0,0.00028748,60]
[426376328,1782335567000,500.0,0.00028748,60]
[426376327,1782335567000,500.0,0.00028748,60]
[426376326,1782335567000,503.03453734,0.00028748,60]
[426376329,1782335571000,500.0,0.00028748,60]
[426376330,1782335573000,539.52712579,0.00028748,60]
[426376333,1782335575000,502.22874614,0.00028748,60]
[426376332,1782335575000,500.0,0.00028748,30]
[426376331,1782335575000,500.0,0.00028748,30]
[426376335,1782335576000,500.0,0.00028748,30]
[426376334,1782335576000,500.0,0.00028748,30]
[426376337,1782335576000,624.41561157,0.00028748,30]
[426376336,1782335576000,500.0,0.00028748,30]
[426376338,1782335583000,509.91153152,0.00028748,60]
[426376339,1782335584000,500.0,0.00028748,60]
[426376340,1782335592000,503.25727483,0.00028748,60]
[426376341,1782335594000,500.0,0.00028748,60]
[426376342,1782335596000,506.49730828,0.00028748,60]
[426376343,1782335598000,192.91879598,0.00028748,60]
[426376344,1782335600000,500.0,0.00028748,60]
[426376345,1782335610000,500.56097377,0.00028748,60]
[426376346,1782335613000,510.11903566,0.00028748,60]
[426376347,1782335617000,511.8691921,0.00028748,60]
[426376348,1782335619000,542.70191834,0.00028748,60]
[426376349,1782335620000,500.0,0.00028748,60]
[426376350,1782335621000,512.78163877,0.00028748,60]
[426376351,1782335622000,528.38,0.00028748,60]
[426376352,1782335623000,509.18221941,0.00028748,60]
[426376354,1782335624000,523.66,0.00028748,60]
[426376353,1782335624000,504.48870134,0.00028748,60]
[426376355,1782335627000,500.0,0.00028748,60]
[426376356,1782335633000,500.0,0.00028748,60]
[426376358,1782335634000,500.0,0.00028748,60]
[426376357,1782335634000,500.0,0.00028748,60]
[426376359,1782335642000,476.01111926,0.00028748,60]
[426376361,1782335643000,513.21831837,0.00028748,60]
[426376360,1782335643000,501.89563945,0.00028748,60]
[426376362,1782335644000,500.0,0.00028748,60]
[426376363,1782335647000,500.0,0.00028748,60]
[426376364,1782335647000,500.0,0.00028748,60]
[426376365,1782335647000,500.0,0.00028748,60]
[426376367,1782335650000,515.49741531,0.00028748,60]
[426376366,1782335650000,511.01786067,0.00028748,60]
[426376368,1782335656000,500.0,0.00028748,60]
[426376369,1782335657000,518.27354259,0.00028748,60]
[426376370,1782335659000,500.0,0.00028748,60]
[426376372,1782335660000,201.09,0.00028748,60]
[426376371,1782335660000,500.0,0.00028748,60]
[426376373,1782335663000,535.03565167,0.00028748,60]
[426376374,1782335665000,513.17287028,0.00028748,60]
[426376375,1782335668000,501.12353022,0.00028748,60]
[426376376,1782335670000,500.0,0.00028748,60]
[426376377,1782335671000,500.0,0.00028748,60]
[426376378,1782335671000,500.0,0.00028748,60]
[426376379,1782335674000,533.65903067,0.00028748,60]
[426376380,1782335676000,-152.73247842,0.00017808,2]
[426376381,1782335677000,501.67134395,0.00028748,60]
[426376383,1782335680000,385.51,0.00028748,60]
[426376382,1782335680000,500.0,0.00028748,60]
[426376384,1782335682000,523.46813501,0.00028748,60]
[426376385,1782335684000,528.07638226,0.00028748,60]
[426376387,1782335686000,500.0,0.00028748,60]
[426376386,1782335686000,500.0,0.00028748,60]
[426376388,1782335687000,271.21,0.00028748,60]
[426376390,1782335687000,631.26,0.00028748,60]
[426376389,1782335687000,631.26,0.00028748,60]
[426376394,1782335688000,631.26,0.00028748,60]
[426376393,1782335688000,631.26,0.00028748,60]
[426376392,1782335688000,631.26,0.00028748,60]
[426376391,1782335688000,631.26,0.00028748,60]
[426376397,1782335689000,631.26,0.00028748,60]
[426376396,1782335689000,631.26,0.00028748,60]
[426376395,1782335689000,631.26,0.00028748,60]
[426376400,1782335690000,631.26,0.00028748,60]
[426376399,1782335690000,631.26,0.00028748,60]
[426376398,1782335690000,631.26,0.00028748,60]
[426376401,1782335691000,631.26,0.00028748,60]
[426376403,1782335691000,631.26,0.00028748,60]
[426376402,1782335691000,631.26,0.00028748,60]
[426376404,1782335692000,631.26,0.00028748,60]
[426376407,1782335692000,631.26,0.00028748,60]
[426376406,1782335692000,631.26,0.00028748,60]
[426376405,1782335692000,631.26,0.00028748,60]
[426376410,1782335693000,631.26,0.00028748,60]
[426376409,1782335693000,631.26,0.00028748,60]
[426376408,1782335693000,631.26,0.00028748,60]
[426376412,1782335694000,631.26,0.00028748,60]
[426376411,1782335694000,631.26,0.00028748,60]
[426376414,1782335699000,500.0,0.00028748,60]
[426376413,1782335699000,507.63142999,0.00028748,60]
[426376415,1782335700000,500.0,0.00028748,60]
[426376416,1782335700000,500.0,0.00028748,60]
[426376417,1782335703000,525.88187727,0.00028748,60]
[426376418,1782335703000,500.0,0.00028748,60]
[426376421,1782335704000,500.0,0.00028748,60]
[426376420,1782335704000,500.0,0.00028748,60]
[426376419,1782335704000,500.0,0.00028748,60]
[426376422,1782335709000,510.25367105,0.00028748,60]
[426376424,1782335710000,500.0,0.00028748,60]
[426376423,1782335710000,511.81357299,0.00028748,60]
[426376425,1782335713000,521.77600044,0.00028748,60]
[426376427,1782335721000,549.92,0.00028748,60]
[426376426,1782335721000,337.47682752,0.00028748,60]
[426376428,1782335722000,160.0,0.00028748,120]
[426376437,1782335724000,508.53339894,0.00028748,60]
[426376493,1782335726000,520.35245634,0.00028748,60]
[426376580,1782335729000,500.0,0.00028748,60]
[426376578,1782335729000,524.88488864,0.00028748,60]
[426376610,1782335730000,500.0,0.00028748,60]
[426376605,1782335730000,500.0,0.00028748,60]
[426376602,1782335730000,729.49,0.00028748,60]
[426376599,1782335730000,500.0,0.00028748,60]
[426376594,1782335730000,500.0,0.00028748,60]
[426376592,1782335730000,729.49,0.00028748,60]
[426376619,1782335731000,215.41,0.00028748,60]
[426376635,1782335731000,729.49,0.00028748,60]
[426376626,1782335731000,729.49,0.00028748,60]
[426376672,1782335732000,729.49,0.00028748,60]
[426376663,1782335732000,729.49,0.00028748,60]
[426376655,1782335732000,729.49,0.00028748,60]
[426376691,1782335733000,729.49,0.00028748,60]
[426376689,1782335733000,729.49,0.00028748,60]
[426376680,1782335733000,729.49,0.00028748,60]
[426376695,1782335734000,729.49,0.00028748,60]
[426376694,1782335734000,729.49,0.00028748,60]
[426376692,1782335734000,729.49,0.00028748,60]
[426376696,1782335735000,729.49,0.00028748,60]
[426376701,1782335735000,729.49,0.00028748,60]
[426376700,1782335735000,729.49,0.00028748,60]
[426376697,1782335735000,729.49,0.00028748,60]
[426376722,1782335736000,729.49,0.00028748,60]
[426376714,1782335736000,729.49,0.00028748,60]
[426376706,1782335736000,729.49,0.00028748,60]
[426376750,1782335737000,729.49,0.00028748,60]
[426376744,1782335737000,509.89872566,0.00028748,60]
[426376730,1782335737000,729.49,0.00028748,60]
[426376755,1782335738000,729.49,0.00028748,60]
[426376770,1782335738000,729.51038206,0.00028748,60]
[426376798,1782335740000,487.92867808,0.00028748,60]
[426376826,1782335741000,500.0,0.00028748,60]
[426376833,1782335741000,500.0,0.00028748,60]
[426376824,1782335741000,168.0,0.0003,120]
[426377056,1782335750000,509.05323557,0.00028748,60]
[426377136,1782335753000,500.0,0.00028748,60]
[426377154,1782335754000,158.87,0.00028748,60]
[426377181,1782335756000,507.4880239,0.00028748,60]
[426377184,1782335759000,511.49432951,0.00028748,60]
[426377186,1782335762000,469.33853378,0.00028748,60]
[426377201,1782335768000,167.599341,0.0003,30]
[426377202,1782335771000,500.0,0.00028749,60]
[426377204,1782335771000,308.02,0.00028748,60]
[426377203,1782335771000,508.27996584,0.00028749,60]
[426377205,1782335772000,634.06579675,0.00028748,60]
[426377206,1782335773000,503.50262055,0.00028748,60]
[426377209,1782335778000,502.53974438,0.00028748,60]
[426377225,1782335782000,502.68174304,0.00028748,60]
[426377231,1782335784000,501.77523733,0.00028748,60]
[426377239,1782335786000,500.0,0.00028748,60]
[426377237,1782335786000,500.0,0.00028748,60]
[426377249,1782335790000,500.0,0.00028748,60]
[426377272,1782335797000,500.0,0.00028748,60]
[426377284,1782335801000,153.0,0.00028748,120]
[426377286,1782335802000,500.0,0.00028748,60]
[426377298,1782335805000,502.884896,0.00028748,60]
[426377310,1782335808000,500.0,0.00028748,60]
[426377311,1782335808000,500.0,0.00028748,60]
[426377307,1782335808000,500.0,0.00028748,60]
[426377314,1782335809000,500.0,0.00028748,60]
[426377312,1782335809000,500.0,0.00028748,60]
[426377336,1782335816000,500.0,0.00028747,60]
[426377358,1782335821000,500.0,0.00028747,30]
[426377357,1782335821000,500.0,0.00028747,60]
[426377355,1782335821000,500.0,0.00028747,30]
[426377353,1782335821000,500.0,0.00028747,30]
[426377363,1782335822000,500.0,0.00028747,30]
[426377360,1782335822000,500.0,0.00028747,30]
[426377365,1782335823000,500.0,0.00028747,30]
[426377369,1782335823000,500.0,0.00028747,30]
[426377367,1782335823000,500.0,0.00028747,30]
[426377376,1782335825000,500.0,0.00028747,60]
[426377383,1782335827000,500.0,0.00028747,60]
[426377390,1782335830000,560.85454787,0.00028747,60]
[426377399,1782335832000,500.0,0.00028747,60]
[426377397,1782335832000,500.0,0.00028747,60]
[426377403,1782335833000,437.23719826,0.00028747,60]
[426377411,1782335836000,518.78,0.00028747,60]
[426377433,1782335842000,500.0,0.00028747,60]
[426377431,1782335842000,539.0263953,0.00028747,60]
[426377439,1782335844000,500.0,0.00028747,60]
[426377448,1782335847000,500.0,0.00028747,60]
[426377450,1782335847000,525.47713549,0.00028747,60]
[426377457,1782335850000,500.0,0.00028747,60]
[426377502,1782335858000,519.23650182,0.00028747,60]
[426377513,1782335867000,500.0,0.00028747,60]
[426377544,1782335870000,500.0,0.00028747,60]
[426377586,1782335872000,500.0,0.00028747,60]
[426377608,1782335873000,500.0,0.00028747,60]
[426377624,1782335874000,500.0,0.00028747,60]
[426377623,1782335874000,500.0,0.00028747,60]
[426377617,1782335874000,517.3503705,0.00028747,60]
[426377665,1782335882000,500.0,0.00028747,60]
[426377667,1782335883000,509.37143803,0.00028747,60]
[426377668,1782335886000,500.0,0.00028747,60]
[426377669,1782335887000,172.0,0.00028747,120]
[426377670,1782335888000,172.0,0.00029747,120]
[426377683,1782335905000,500.0,0.00028747,60]
[426377682,1782335905000,500.0,0.00028747,60]
[426377684,1782335906000,457.97,0.00028747,60]
[426377690,1782335916000,509.99369008,0.00028747,60]
[426377688,1782335916000,500.0,0.00028747,60]
[426377691,1782335917000,500.0,0.00028747,60]
[426377694,1782335919000,515.03350303,0.00028747,60]
[426377700,1782335927000,500.0,0.00028747,60]
[426377702,1782335928000,500.0,0.00028747,60]
[426377701,1782335928000,500.0,0.00028747,60]
[426377704,1782335928000,500.0,0.00028747,60]
[426377703,1782335928000,500.0,0.00028747,60]
[426377706,1782335929000,500.0,0.00028747,60]
[426377705,1782335929000,500.0,0.00028747,60]
[426377710,1782335930000,500.0,0.00028747,60]
[426377709,1782335930000,500.0,0.00028747,60]
[426377708,1782335930000,500.0,0.00028747,60]
[426377712,1782335931000,506.29860738,0.00028747,60]
[426377711,1782335931000,500.0,0.00028747,60]
[426377717,1782335932000,575.12,0.00028747,60]
[426377716,1782335932000,500.0,0.00028747,60]
[426377715,1782335932000,503.8964734,0.00028747,60]
[426377714,1782335932000,500.0,0.00028747,60]
[426377713,1782335932000,500.0,0.00028747,60]
[426377718,1782335943000,509.25547259,0.00028747,60]
[426377719,1782335953000,417.15472785,0.00028747,30]
[426377720,1782335957000,500.0,0.00028747,60]
[426377721,1782335959000,510.55726191,0.00028747,60]
[426377723,1782335967000,510.08321746,0.00028747,60]
[426377722,1782335967000,523.43399595,0.00028747,60]
[426377726,1782335969000,500.0,0.00028747,60]
[426377725,1782335969000,500.0,0.00028747,60]
[426377724,1782335969000,500.0,0.00028747,60]
[426377728,1782335970000,500.0,0.00028747,60]
[426377727,1782335970000,500.0,0.00028747,60]
[426377729,1782335971000,500.0,0.00028747,60]
[426377730,1782335972000,500.0,0.00028747,60]
[426377732,1782335972000,500.0,0.00028747,60]
[426377731,1782335972000,500.0,0.00028747,60]
[426377733,1782335973000,500.68,0.00028747,60]
[426377756,1782336007000,500.0,0.00028747,60]
[426377757,1782336012000,500.0,0.00028747,60]
[426377759,1782336024000,500.0,0.00028747,60]
[426377758,1782336024000,500.0,0.00028747,60]
[426377760,1782336025000,215.42,0.00028747,60]
[426377761,1782336029000,500.0,0.00028747,60]
[426377762,1782336029000,500.0,0.00028747,60]
[426377763,1782336030000,500.0,0.00028747,60]
[426377764,1782336033000,500.0,0.00028747,60]
[426377765,1782336036000,514.76051848,0.00028747,60]
[426377766,1782336038000,500.0,0.00028747,60]
[426377767,1782336039000,510.1731411,0.00028747,60]
[426377771,1782336053000,151.0,0.00028747,60]
[426377798,1782336061000,500.0,0.00028747,60]
[426377801,1782336065000,500.0,0.00028747,60]
[426377802,1782336065000,272.19,0.00028747,60]
[426377821,1782336070000,533.18253614,0.00028747,60]
[426377834,1782336074000,521.01932281,0.00028747,60]
[426377836,1782336077000,511.2620221,0.00028747,60]
[426377839,1782336079000,503.85010821,0.00028747,60]
[426377844,1782336086000,425.35,0.00028747,60]
[426377843,1782336086000,500.0,0.00028747,60]
[426377845,1782336087000,506.98826723,0.00028747,60]
[426377846,1782336089000,524.24651727,0.00028747,60]
[426377847,1782336090000,500.0,0.00028747,60]
[426377848,1782336091000,508.21262576,0.00028747,60]
[426377850,1782336093000,500.0,0.00028747,60]
[426377851,1782336097000,507.7173346,0.00028747,60]
[426377852,1782336098000,503.25959761,0.00028747,60]
[426377853,1782336098000,500.0,0.00028747,60]
[426377854,1782336099000,512.67652898,0.00028747,60]
[426377855,1782336100000,523.12324961,0.00028747,60]
[426377856,1782336101000,441.66993005,0.00028747,60]
[426377857,1782336102000,507.86210341,0.00028747,60]
[426377858,1782336103000,508.45220294,0.00028747,60]
[426377865,1782336107000,525.77000095,0.00028747,60]
[426377864,1782336107000,515.01172034,0.00028747,60]
[426377866,1782336108000,503.35524687,0.00028747,60]
[426377867,1782336109000,500.0,0.00028747,60]
[426377868,1782336111000,252.87869128,0.00028747,60]
[426377869,1782336113000,511.05452284,0.00028747,60]
[426377872,1782336115000,504.81880018,0.0002878,60]
[426377873,1782336116000,501.94274662,0.0002878,60]
[426377875,1782336118000,524.20420857,0.0002878,60]
[426377909,1782336122000,527.30926949,0.0002878,60]
[426377910,1782336123000,512.44219966,0.0002878,60]
[426377917,1782336128000,500.0,0.0002878,60]
[426377918,1782336130000,589.28604774,0.0002878,60]
[426377919,1782336131000,211.37513069,0.0002878,60]
[426377920,1782336132000,500.0,0.0002878,60]
[426377923,1782336133000,507.7467533,0.0002878,60]
[426377922,1782336133000,500.0,0.0002878,60]
[426377921,1782336133000,500.0,0.0002878,60]
[426377924,1782336138000,507.08993591,0.0002878,60]
[426377926,1782336143000,500.0,0.0002878,60]
[426377927,1782336147000,500.0,0.0002878,60]
[426377930,1782336149000,523.93849044,0.0002878,60]
[426377931,1782336163000,508.16406483,0.0002878,60]
[426377932,1782336167000,503.52457521,0.0002878,60]
[426377944,1782336170000,501.20558409,0.0002878,60]
[426377949,1782336171000,514.5922688,0.0002878,60]
[426377979,1782336179000,531.27420863,0.0002878,60]
[426377981,1782336180000,501.22472386,0.0002878,60]
[426377980,1782336180000,500.0,0.0002878,60]
[426377982,1782336184000,506.4713002,0.0002878,60]